Cogmind - Beta 13 @@@ ROGUE MODE // 2024.05.15 @ 10:52:20 Player: Crackrock_Steady Result: Destroyed by as-37833 with Assembled Heavy Rifle Performance ------------- Evolutions (1) 500 Regions Visited (3) 600 Robots Destroyed (16) 80 Value Destroyed (346) 346 Prototype IDs (8) 160 Alien Tech Used (0) 0 Bonus (0) 0 TOTAL SCORE: 1686 Bonus ------- None Cogmind --------- Core Integrity 0/400 Matter 300/300 Energy 99/100 System Corruption 8% Temperature Warm (126) Movement Core (50) Location -9/Mines Parts ------- > --- POWER (1) -------- (None) > --- PROPULSION (2) --- (None) > --- UTILITY (4) ------ (None) > --- WEAPON (2) ------- (None) > --- INVENTORY (5) ---- Light Ion Engine Aluminum Leg Wheel Peak State ------------ > --- POWER ------------ Light Nuclear Core > --- PROPULSION ------- Compact Wheel Compact Wheel > --- UTILITY ---------- Hardened Light Armor Plating Hardened Light Armor Plating Hardened Light Armor Plating Hardened Light Armor Plating > --- WEAPON ----------- Medium Laser Autogun > --- INVENTORY -------- Armored Wheel Medium Armor Plating Medium Armor Plating Advanced Beam Cannon Grenade Launcher [Rating: 17] Favorites ----------- Power Light Ion Engine Engine Light Ion Engine Power Core Light Nuclear Core Propulsion Light Treads Treads Light Treads Wheel Compact Wheel Utility Hardened Light Armor Plating Storage Small Storage Unit Processor Transport Network Coupler Protection Hardened Light Armor Plating Weapon Autogun Energy Gun Medium Laser Energy Cannon Advanced Beam Cannon Ballistic Gun Autogun Launcher Grenade Launcher Special Weapon Welding Torch Build | -11 -10 -9 -9 ------- Run | Yrd Mat Mat Min Slots Evolved 2 | . . 2 . Power . | . . . . Propulsion . | . . . . Utility 2 | . . 2 . Weapon . | . . . . Parts Attached 30 | 6 7 10 7 Power 4 | 1 . 3 . Engine 3 | 1 . 2 . Core 1 | . . 1 . Reactor . | . . . . Propulsion 5 | 2 . 2 1 Treads 2 | 2 . . . Leg . | . . . . Wheel 3 | . . 2 1 Hover . | . . . . Flight . | . . . . Utility 8 | 1 2 2 3 Device . | . . . . Storage 1 | 1 . . . Processor 1 | . . . 1 Hackware . | . . . . Protection 6 | . 2 2 2 Artifact . | . . . . Weapon 13 | 2 5 3 3 Energy Gun 2 | . . 1 1 Energy Cannon 3 | . 3 . . Ballistic Gun 4 | 2 1 1 . Ballistic Cannon . | . . . . Launcher 3 | . 1 1 1 Special Weapon 1 | . . . 1 Impact Weapon . | . . . . Slashing Weapon . | . . . . Piercing Weapon . | . . . . Special Melee Weapon . | . . . . Unidentified Prototypes 1 | . 1 . . Parts Lost 15 | . . . 15 Power 1 | . . . 1 Propulsion 3 | . . . 3 Utility 7 | . . . 7 Weapon 4 | . . . 4 Highest Loss Streak 15 | . . . 15 To Critical Strikes 1 | . . . 1 Average Slot Usage (%) 96 | . 99 99 63 Engine 9 | . 14 8 . Core 1 | . . 2 6 Treads 18 | . 28 15 . Wheel 4 | . . 6 12 Protection 36 | . 27 44 27 Energy Gun 6 | . . 9 7 Energy Cannon 5 | . 13 1 . Ballistic Gun 11 | . 14 10 5 Naked Turns 7 | . . . 7 Heaviest Build 32 | 11 20 32 32 Greatest Support 40 | 40 40 40 32 Greatest Overweight (x) 10 | . . 10 6 Average Overweight (x) . | . . 1 . Largest Inventory Capacity 8 | 8 8 5 5 Average Capacity 5 | 7 5 5 5 Most Carried 5 | 4 5 5 5 Average Carried 4 | . 4 4 3 Final Capacity 8 | 8 5 5 5 Final Carried 5 | 1 5 5 3 Class Distribution -------------------- 100% | Mutant Dominant Class ---------------- Mutant | -10/Materials Mutant | -9/Materials Mutant | -9/Mines Resources | -11 -10 -9 -9 ----------- Run | Yrd Mat Mat Min Matter Collected 807 | 181 122 377 127 Remotely . | . . . . Salvage Created 519 | . 122 379 18 Parts 38 | . 12 25 1 Haulers Intercepted . | . . . . Recyclers Shooed 2 | . . 2 . Parts Field Recycled . | . . . . Retrieved Matter . | . . . . Parts Self-Destructed . | . . . . Prevented . | . . . . Kills | -11 -10 -9 -9 ------- Run | Yrd Mat Mat Min Combat Hostiles Destroyed 8 | . 3 4 1 Guns 3 | . . 2 1 Cannons 2 | . 2 . . AOE 3 | . 1 2 . Classes Destroyed 9 | . 3 4 2 Worker 2 | . . 2 . Builder 2 | . . 2 . Tunneler 1 | . . . 1 Recycler 2 | . . 2 . Operator 1 | . 1 . . Watcher 1 | . 1 . . Grunt 5 | . 3 2 . Sentry 2 | . . 2 . Assembled 1 | . . . 1 Best Kill Streak 4 | . 2 4 2 Combat Bots Only 2 | . 2 2 1 Max Kills in Single Turn 3 | . 1 3 1 Gunslinging . | . . . . Exploded 1 | . 1 1 . Melee . | . . . . Uniques/NPCs Destroyed . | . . . . Combat | -11 -10 -9 -9 -------- Run | Yrd Mat Mat Min Hostile Shots Fired 117 | . 5 21 91 Missed 20 | . 1 3 16 Damage Taken 1825 | . 44 316 1465 Core 430 | . 24 61 345 Absorbed by Shields . | . . . . Core Remaining (%) 95 | 100 90 . . Volleys Fired 62 | . 22 21 19 Largest 2 | . 2 2 2 Hottest 91 | . 91 91 73 Shots Fired 110 | . 44 40 26 Gun 80 | . 22 34 24 Cannon 23 | . 20 3 . Launcher 6 | . 2 3 1 Special 1 | . . . 1 Kinetic 47 | . 22 16 9 Thermal 57 | . 20 21 16 Explosive 6 | . 2 3 1 Electromagnetic . | . . . . Robot Hit Streak 6 | . 2 6 3 Robot Miss Streak 11 | . 11 3 9 Penetration Max . | . . . . Secondary Targets 1 | . . . 1 Max Gunslinging Chain 1 | . . . 1 Shots Hit Robots 41 | . 10 22 9 Core Hits 36 | . 10 18 8 Critical Kills . | . . . . Critical Parts Destroyed . | . . . . Critical Strikes 1 | . . . 1 Burn 1 | . . . 1 Melee Attacks . | . . . . Impact . | . . . . Slashing . | . . . . Piercing . | . . . . Sneak Attacks . | . . . . Combat Hostiles . | . . . . Follow-up Attacks . | . . . . Damage Inflicted 1019 | . 266 544 209 Guns 394 | . 36 238 120 Cannons 187 | . 146 41 . Explosions 396 | . 84 223 89 Melee . | . . . . Ramming 42 | . . 42 . Kinetic 206 | . 36 100 70 Thermal 375 | . 146 179 50 Explosive 396 | . 84 223 89 Electromagnetic . | . . . . Impact . | . . . . Slashing . | . . . . Piercing . | . . . . Highest Corruption 8 | . 3 1 8 Average Corruption 2 | . 3 1 2 Corruption Purged . | . . . . Corruption Blocked . | . . . . Effects 11 | . 10 . 1 Message Errors 3 | . 3 . . Matter Fused 3 | . 3 . . Heat Flow Errors 2 | . 1 . 1 Energy Discharges 1 | . 1 . . Data Loss (major) 1 | . 1 . . Alerts 1 | . 1 . . Overload Shots . | . . . . Overflow Damage 1 | . 1 . . Projectiles 1 | . 1 . . Explosions . | . . . . Melee . | . . . . Knockbacks . | . . . . Impact . | . . . . Kinetic . | . . . . Secondary . | . . . . Self-Inflicted Damage 37 | . . 37 . Shots 1 | . . 1 . Rammed 3 | . . 3 . Targets Rammed 3 | . . 3 . Kicked . | . . . . Crushed . | . . . . Highest Temperature 853 | . 427 451 853 Average Temperature 226 | . 134 230 449 Received Heat Transfer 446 | . 24 150 272 Effects 51 | . 4 26 21 Shutdowns 9 | . 1 4 4 Energy Bleed 15 | . . 12 3 Interference 4 | . . 2 2 Matter Decay 6 | . . 4 2 Short Circuit 4 | . . 3 1 Damage (minor) 4 | . . 1 3 Damage (major) 7 | . 3 . 4 Damage (core) 2 | . . . 2 Siege Activations . | . . . . Robots Corrupted . | . . . . Combat Hostiles . | . . . . Parts Fried . | . . . . Impact Corruptions . | . . . . Robots Melted . | . . . . Combat Hostiles . | . . . . Parts Melted . | . . . . Heat Transferred 962 | . 259 481 222 Parts Sabotaged . | . . . . Parts Stolen . | . . . . Parts Stripped . | . . . . Power Chain Reactions . | . . . . Alert | -11 -10 -9 -9 ------- Run | Yrd Mat Mat Min Peak Influence 174 | . 69 174 44 Initial 38 | . . 27 38 Average 51 | . 42 66 14 Maximum Alert Level . | . . . . Low Security (%) 100 | 100 100 100 100 Level 1 . | . . . . Level 2 . | . . . . Level 3 . | . . . . Level 4 . | . . . . Level 5 . | . . . . High Security . | . . . . Max Security . | . . . . Squads Dispatched 5 | . 2 2 1 Investigation 3 | . 1 2 . Extermination . | . . . . Reinforcement 2 | . 1 . 1 Assault . | . . . . Garrison . | . . . . Intercept . | . . . . Searches Triggered . | . . . . Construction Impeded 1 | . . . 1 Haulers Reinforced . | . . . . Active Scanning Responses . | . . . . Cargo Convoy Interrupts . | . . . . Stealth | -11 -10 -9 -9 --------- Run | Yrd Mat Mat Min Distress Signals 1 | . . 1 . Communications Jammed . | . . . . Distress Signals . | . . . . Times Spotted 37 | . 9 12 16 Peak Tracking Total 7 | . 3 3 7 Tactical Retreats . | . . . . Traps | -11 -10 -9 -9 ------- Run | Yrd Mat Mat Min Traps Triggered . | . . . . Indirectly . | . . . . Trap Hack Attempts . | . . . . Triggered . | . . . . Disarmed . | . . . . Reprogrammed . | . . . . Reused . | . . . . Traps Extracted . | . . . . Installed . | . . . . Triggered . | . . . . Machines | -11 -10 -9 -9 ---------- Run | Yrd Mat Mat Min Machines Disabled 1 | . 1 . . Max in Single Turn 1 | . 1 . . Machines Repaired . | . . . . Machines Dismantled . | . . . . Machines Sabotaged . | . . . . Overloaded Fab Kills . | . . . . Hacking | -11 -10 -9 -9 --------- Run | Yrd Mat Mat Min Machines Accessed 5 | . 1 4 . Terminals 5 | . 1 4 . Fabricators . | . . . . Repair Stations . | . . . . Recycling Units . | . . . . Scanalyzers . | . . . . Garrison Access . | . . . . Total Hacks 20 | . 5 15 . Successful 10 | . 3 7 . Failed 10 | . 2 8 . Catastrophic 3 | . 1 2 . Database Lockouts . | . . . . Manual . | . . . . Terminals 20 | . 5 15 . Fabricators . | . . . . Repair Stations . | . . . . Recycling Units . | . . . . Scanalyzers . | . . . . Garrison Access . | . . . . Terminal Hacks 10 | . 3 7 . Prototype ID Bank 3 | . . 3 . Branch Access Points 1 | . 1 . . Emergency Access Points 1 | . . 1 . Transport Status 1 | . . 1 . Hauler Manifests 2 | . 1 1 . Registered Prototypes 1 | . 1 . . Zone Layout 1 | . . 1 . Fabricator Hacks . | . . . . Repair Station Hacks . | . . . . Recycling Unit Hacks . | . . . . Scanalyzer . | . . . . Garrison Access Hacks . | . . . . Unauthorized Hacks . | . . . . Terminals . | . . . . Fabricators . | . . . . Repair Stations . | . . . . Recycling Units . | . . . . Scanalyzers . | . . . . Garrison Access . | . . . . Data Cores Recovered 1 | . 1 . . Used 1 | . 1 . . Hacking Detections 5 | . 1 4 . Full Trace Events 3 | . 1 2 . Feedback Events 1 | . . 1 . Corruption 1 | . . 1 . Feedback Blocked . | . . . . Robot Schematics Acquired . | . . . . Robots Built . | . . . . Authchips . | . . . . Time . | . . . . Total Robot Build Rating . | . . . . Part Schematics Acquired . | . . . . Parts Built . | . . . . Authchips . | . . . . Time . | . . . . Total Part Build Rating . | . . . . Parts Repaired . | . . . . Time . | . . . . Parts Recycled . | . . . . Recycled Matter . | . . . . Retrieved Matter . | . . . . Retrieved Components . | . . . . Parts Scanalyzed . | . . . . Part Schematics Acquired . | . . . . Parts Damaged . | . . . . Bothacking | -11 -10 -9 -9 ------------ Run | Yrd Mat Mat Min Used RIF Installer . | . . . . Robots Hacked . | . . . . Non-combat . | . . . . Combat . | . . . . Robot Hacks Applied . | . . . . Relay Couplers Released . | . . . . Fabnet Peak Effective % . | . . . . Robots Rewired . | . . . . Allies Hacked . | . . . . Hacks Repelled . | . . . . Allies | -11 -10 -9 -9 -------- Run | Yrd Mat Mat Min Total Allies . | . . . . Largest Group . | . . . . Highest-Rated Group . | . . . . Highest-Rated Ally . | . . . . Total Orders . | . . . . Ally Attacks . | . . . . Total Damage . | . . . . Kills . | . . . . Allies Corrupted . | . . . . Allies Melted . | . . . . Intel | -11 -10 -9 -9 ------- Run | Yrd Mat Mat Min Robot Analysis Total . | . . . . Derelict Logs Recovered . | . . . . Drone Launches . | . . . . Drone Recoveries . | . . . . Exploration | -11 -10 -9 -9 ------------- Run | Yrd Mat Mat Min Turns Passed 1499 | 61 522 795 121 Spaces Moved 747 | 37 274 366 70 Core 84 | 9 . 55 20 Treads 414 | 28 274 112 . Legs . | . . . . Wheels 249 | . . 199 50 Hover . | . . . . Flight . | . . . . Fastest Speed 50 | 50 160 100 50 Average Speed 166 | 133 160 189 91 Slowest Speed 550 | 160 160 550 350 Overloaded Moves . | . . . . Propulsion Burnouts . | . . . . Robots Hopped . | . . . . Cave-ins Triggered . | . . . . Exploration Rate (%) 21 | 4 37 28 16 Regions Visited 3 Branch Regions 1 Pre-discovered Areas . | . . . . Known Exits Taken . | . . . . Unknown Exits Taken 3 | 1 1 1 . Scrap Searched . | . . . . Spaces Dug . | . . . . Terrain Destroyed 37 | . 14 22 1 Melee . | . . . . Projectile . | . . . . AOE 37 | . 14 22 1 Terrain Rammed . | . . . . Walls Destroyed . | . . . . Machines Disabled . | . . . . Actions | -11 -10 -9 -9 --------- Run | Yrd Mat Mat Min Total 899 | 49 318 430 102 Wait 25 | . 4 19 2 Move 744 | 36 273 365 70 Hop . | . . . . Pick Up 24 | 7 8 5 4 Fast Attach 4 | . 1 3 . Attach 17 | 6 3 2 6 Detach . | . . . . Swap 9 | . 3 5 1 Drop 11 | . 4 7 . Fire 62 | . 22 21 19 Melee . | . . . . Ram 3 | . . 3 . Kick . | . . . . Crush . | . . . . Escape Stasis . | . . . . Rewire . | . . . . Trap . | . . . . Miscellaneous . | . . . . Route ------- -11/Scrapyard -10/Materials (discovered 2 exits: *Mat / Min) -9/Materials -9/Mines History --------- Turn | Location | Event 32 | -11/Scrapyard | Discovered new exit (range 15) 62 | -11/Scrapyard | Entered Materials 105 | -10/Materials | Identified exit to Mines 306 | -10/Materials | Build established: Mutant 518 | -10/Materials | Discovered new exit (range 7) 584 | -10/Materials | Entered another Materials area 584 | -9/Materials | Evolved 2 slots: Utility x2 1326 | -9/Materials | Discovered new exit (range 12) 1379 | -9/Materials | Entered Mines 1380 | -9/Mines | Assembled infested the area 1385 | -9/Mines | Assisted by a Guerilla fighting off Assembled 1389 | -9/Mines | Met a Derelict bent on vengeance 1433 | -9/Mines | Core integrity fell below 50% 1481 | -9/Mines | Core integrity fell below 20% 1500 | -9/Mines | Destroyed by as-37833 with Assembled Heavy Rifle Last Messages --------------- 01467_ Overheating: Broken Med. Laser damaged (-6). 01468_ Overheating: Energy bleed (-12). 01469_ Acquired Aluminum Leg. 01470_ Acquired 45 matter. 01472_ Acquired Wheel. 01473_ Acquired 7 matter. 01474_ Acquired 42 matter. 01480_ Acquired Welding Torch. 01481_ Transport Network Coupler destroyed. 01481_ System corrupted by crushing effect (+5). 01484_ Welding Torch destroyed. 01484_ System corrupted by crushing effect (+2). 01485_ Acquired 1 matter. 01487_ Acquired Lgt. Ion Engine. 01489_ Med. Armor Plating destroyed. 01489_ Broken Med. Laser destroyed. 01493_ Critical hit (Destroy). 01493_ Arm. Wheel destroyed. 01498_ System corrupted: Heat flow error (+182). Map ----- +----------------------------------------------------+ | ????????????# # ## # #?????????????? | | ????????????# # #*# # #?????????????? | | ????????????# "% #?????????????? | | ????????????# # ##?????????????? | | ????????????# ## %% #??????????????? | | ????????????# # #??????????????? | | ????????????## % ## # #??????????????? | | ?????????????### = ##########??????????????? | | ???????????????## =! ######???????????????????? | | ????????????????# ## ##??????????????????? | | ????????????????## #??????????????????? | | ?????????????????## #??????????????????? | | ??????????????????#### ##?????????????????? | | ?????????????????????## $ ##????????????????? | | ??????????????????????# #????????????????? | | ?????????????????????## #????????????????? | | ?????????????????????# ##???????????????? | | ????????????????????## ##??????????????? | | ??????????????????### #????????? | | ?????????????????## ### #?????????? | | ?????????????????# ##??# #?????????? | | ?????????????????# #????## ##?????????? | | ?????????????????# #??????# ##??????????? | | ?????????????????# ####???? ##???????????? | | ?????????????????## #????? ##????????????? | | ??????????????????####@ #????? ##?????????????? | | ?????????????????????# #??????#??????????????? | | ?????????????????????# #?????????????????????? | | ?????????????????????# #?????????????????????? | | ?????????????????????# #?????????????????????? | | ?????????????????????# #?????????????????????? | | ????????????????????? a #?????????????????????? | | ????????????????????? ?????????????????????? | | ????????????????????? ?????????????????????? | | ????????????????????? ?????????????????????? | | ????????????????????? ?????????????????????? | | ?????????????????????# ????????????????????? | | ?????????????????????? a #????????????????????? | | ?????????????????????? ##????????????????????? | | ?????????????????????? ??????????????????????? | | ??????????????????????a ??????????????????????? | | ??????????????????????????????????????????????? | | ??????????????????????????????????????????????? | | ??????????????????????????????????????????????? | | ??????????????????????????????????????????????? | | ??????????????????????????????????????????????? | | ??????????????????????????????????????????????? | | ??????????????????????????????????????????????? | | ??????????????????????????????????????????????? | | ??????????????????????????????????????????????? | +----------------------------------------------------+ Best States ------------- Heat Dissipation 28 Energy Generation 14 Energy Capacity 265 Matter Stores 300 Matter Capacity 300 Sight Range 16 Terrain Scan Density 10 Armor Coverage 675 Evasion (%) 50 Recoil Reduction 2 Item Schematics ----------------- None Robot Schematics ------------------ None Fabricated ------------ Nothing Alien Tech Used ----------------- None Achievements -------------- Dynamic Key Challenges ------------ None Game ------ Seed ArmorMatterAirjet Manual? 0 Play Time 00:19:47 Cumulative 4.0 hours Start 2024.05.15 @ 10:33:37 End 2024.05.15 @ 10:52:20 Sessions 1 Manual Loads 0 Difficulty Rogue Special Mode None Game No. 13 Rogue 13 Adventurer 0 Explorer 0 Win Type - Total 0 Types 0/0/0/0/0/0/0/0/0 Lore% 5 Gallery% 9 Achievement% 10 Wizard Run 0 Options --------- Layout 1 ASCII 0 Keyboard 0 Movement Mouse Keybinds 0 Fullscreen 1 Font 24/Smallcaps Map View 50x35 Zoom Use 0% Tactical HUD 1 Map Filters NONE Filters NONE Steam 1 RUN: 2bac4af3-0c9e-401c-b63b-d5d6b2ed051d